lending/lending_fUSD_20250418
["ID","MTS","AMOUNT","RATE_DAILY","PERIOD"]
[358334047,1744944426372,-237.50988474,0.00051973,28]
[358334048,1744944426395,-4728.49155102,0.00051973,15]
[358334049,1744944427201,-253.45549396,0.00051973,15]
[358334050,1744944430094,-864.63130046,0.00051973,15]
[358334051,1744944435231,-397.68592274,0.00051973,15]
[358334052,1744944435254,-19.51715233,0.00052027,2]
[358334053,1744944438103,-152.99,0.00042343,5]
[358334054,1744944438126,-150.0,0.00052027,2]
[358334055,1744944438148,-130.48284767,0.00052027,2]
[358334056,1744944438169,-700.0,0.00052047,10]
[358334057,1744944438189,-681.20111971,0.00052048,2]
[358334058,1744944445103,-977.66982039,0.00052048,2]
[358334061,1744944631390,-268.090082,0.00051691,5]
[358334062,1744944631400,-188.29617176,0.00051898,2]
[358334063,1744944631410,-874.5963,0.00051952,2]
[358334064,1744944631419,-886.40347382,0.00051973,80]
[358334065,1744944631429,-224.37266554,0.00051973,24]
[358334066,1744944631443,-542.42994166,0.00051973,24]
[358334067,1744944631453,-250.0,0.00052011,2]
[358334068,1744944631463,-9011.06888316,0.00052048,2]
[358334069,1744944631473,-420.0,0.0005205,10]
[358334070,1744944631482,-504.18062962,0.00052051,120]
[358334071,1744944631492,-234.50703721,0.00052051,120]
[358334072,1744944631501,-276.81299056,0.00052051,120]
[358334073,1744944631511,-504.18062962,0.00052051,120]
[358334074,1744944631521,-504.18062962,0.00052051,120]
[358334075,1744944631530,-504.18062962,0.00052051,120]
[358334076,1744944631539,-504.18062962,0.00052051,120]
[358334077,1744944631548,-504.18062962,0.00052051,120]
[358334078,1744944631558,-504.18062962,0.00052051,120]
[358334079,1744944631567,-504.18062962,0.00052051,120]
[358334080,1744944631577,-504.18062962,0.00052051,120]
[358334081,1744944631587,-504.18062962,0.00052051,120]
[358334082,1744944631597,-504.18062962,0.00052051,120]
[358334083,1744944631606,-504.18062962,0.00052051,120]
[358334084,1744944631615,-504.18062962,0.00052051,120]
[358334085,1744944631624,-504.18062962,0.00052051,120]
[358334086,1744944631634,-504.18062962,0.00052051,120]
[358334087,1744944631644,-504.18062962,0.00052051,120]
[358334088,1744944631654,-504.18062962,0.00052051,120]
[358334089,1744944631663,-504.18062962,0.00052051,120]
[358334090,1744944631673,-504.18062962,0.00052051,120]
[358334091,1744944631682,-504.18062962,0.00052051,120]
[358334092,1744944631692,-504.18062962,0.00052051,120]
[358334093,1744944631702,-151.79547492,0.00052051,120]
[358334095,1744944631711,-504.18062962,0.00052051,120]
[358334097,1744944631720,-504.18062962,0.00052051,120]
[358334098,1744944631730,-234.79443687,0.00052051,120]
[358334100,1744944631739,-299.08290395,0.00052051,120]
[358334102,1744944631748,-2427.97441116,0.00052051,120]
[358334104,1744944631757,-2427.97441116,0.00052051,120]
[358334106,1744944631766,-2427.97441116,0.00052051,120]
[358334108,1744944631775,-2427.97441116,0.00052051,120]
[358334110,1744944631784,-2427.97441116,0.00052051,120]
[358334113,1744944631794,-2427.97441116,0.00052051,120]
[358334115,1744944631803,-150.99,0.00052051,2]
[358334118,1744944631812,-510.46,0.00052051,2]
[358334121,1744944631822,-19570.64197689,0.00052052,30]
[358334125,1744944631838,-517.992,0.00052052,30]
[358334172,1744944632096,-2917.50301838,0.00052052,30]
[358334180,1744944637495,-379.75986534,0.00052052,30]
[358334181,1744944637507,-421898.27991024,0.00052052,30]
[358334182,1744944637519,-67033.28981602,0.00052052,30]
[358334183,1744944637529,-500.0,0.00052073,10]
[358334184,1744944637538,-503.53954002,0.00052073,10]
[358334185,1744944637547,-160.80673379,0.00052073,7]
[358334186,1744944637556,-181.84261027,0.00052073,10]
[358334187,1744944637566,-203.97,0.00052493,120]
[358334188,1744944637575,-151.0,0.00053,100]
[358334189,1744944637584,-199.44,0.00053753,2]
[358334190,1744944637594,-150.81993876,0.00054795,120]
[358334191,1744944637603,-173.11,0.000552,54]
[358334192,1744944637613,-173.11,0.000552,54]
[358334193,1744944637622,-173.11,0.000552,54]
[358334194,1744944637631,-173.11,0.000552,54]
[358334195,1744944637641,-173.11,0.000552,54]
[358334196,1744944637650,-173.11,0.000552,54]
[358334197,1744944637659,-173.11,0.000552,54]
[358334198,1744944637669,-173.11,0.000552,54]
[358334199,1744944637678,-173.11,0.000552,54]
[358334200,1744944637687,-173.11,0.000552,54]
[358334201,1744944637697,-173.11,0.000552,54]
[358334202,1744944637706,-173.11,0.000552,54]
[358334203,1744944637716,-250.0,0.0005686,2]
[358334204,1744944637725,-350.0,0.0005686,111]
[358334205,1744944637735,-250.0,0.0005717,2]
[358334206,1744944637744,-350.0,0.0005717,111]
[358334207,1744944637753,-182.08,0.00057325,120]
[358334208,1744944637763,-203.97,0.00057384,120]
[358334209,1744944637772,-1002.79118924,0.00057552,15]
[358334210,1744944637781,-560.83245271,0.0006,30]
[358334211,1744944637791,-500.0,0.000611,120]
[358334212,1744944637800,-203.97,0.00062274,120]
[358334213,1744944637810,-600.0,0.00065332,120]
[358334214,1744944637819,-182.08,0.0006688,120]
[358334215,1744944637828,-203.97,0.00067164,120]
[358334216,1744944637838,-244.461,0.00068473,120]
[358334217,1744944637847,-1113.23583635,0.00068493,120]
[358334218,1744944637856,-1113.23583635,0.00068493,120]
[358334219,1744944637865,-1113.23583635,0.00068493,120]
[358334220,1744944637874,-1113.23583635,0.00068493,120]
[358334221,1744944637883,-1113.23583635,0.00068493,120]
[358334222,1744944637892,-1113.23583635,0.00068493,120]
[358334223,1744944637902,-1113.23583635,0.00068493,120]
[358334224,1744944637911,-1113.23583635,0.00068493,120]
[358334225,1744944637920,-1113.23583635,0.00068493,120]
[358334226,1744944637929,-1113.23583635,0.00068493,120]
[358334227,1744944637938,-1113.23583635,0.00068493,120]
[358334228,1744944637948,-1113.23583635,0.00068493,120]
[358334229,1744944637957,-1113.23583635,0.00068493,120]
[358334230,1744944637966,-1113.23583635,0.00068493,120]
[358334231,1744944637975,-1113.23583635,0.00068493,120]
[358334233,1744944637987,-1113.23583635,0.00068493,120]
[358334235,1744944637997,-1113.23583635,0.00068493,120]
[358334237,1744944638006,-1113.23583635,0.00068493,120]
[358334239,1744944638015,-1113.23583635,0.00068493,120]
[358334241,1744944638024,-1113.23583635,0.00068493,120]
[358334243,1744944638033,-1113.23583635,0.00068493,120]
[358334245,1744944638041,-1113.23583635,0.00068493,120]
[358334246,1744944638050,-1113.23583635,0.00068493,120]
[358334248,1744944638060,-1113.23583635,0.00068493,120]
[358334250,1744944638070,-1113.23583635,0.00068493,120]
[358334251,1744944638079,-1113.23583635,0.00068493,120]
[358334252,1744944638089,-1113.23583635,0.00068493,120]
[358334253,1744944638098,-1113.23583635,0.00068493,120]
[358334254,1744944638107,-1113.23583635,0.00068493,120]
[358334255,1744944638116,-1113.23583635,0.00068493,120]
[358334256,1744944638125,-1113.23583635,0.00068493,120]
[358334257,1744944638134,-1113.23583635,0.00068493,120]
[358334258,1744944638142,-1113.23583635,0.00068493,120]
[358334259,1744944638152,-1113.23583635,0.00068493,120]
[358334260,1744944638164,-1113.23583635,0.00068493,120]
[358334261,1744944638172,-1113.23583635,0.00068493,120]
[358334262,1744944638181,-1113.23583635,0.00068493,120]
[358334263,1744944638191,-1113.23583635,0.00068493,120]
[358334264,1744944638201,-1113.23583635,0.00068493,120]
[358334265,1744944638210,-1113.23583635,0.00068493,120]
[358334266,1744944638219,-1113.23583635,0.00068493,120]
[358334267,1744944638229,-1113.23583635,0.00068493,120]
[358334268,1744944638239,-1113.23583635,0.00068493,120]
[358334269,1744944638249,-1113.23583635,0.00068493,120]
[358334270,1744944638259,-1113.23583635,0.00068493,120]
[358334271,1744944638268,-1113.23583635,0.00068493,120]
[358334272,1744944638278,-1113.23583635,0.00068493,120]
[358334273,1744944638287,-1113.23583635,0.00068493,120]
[358334274,1744944638297,-1113.23583635,0.00068493,120]
[358334275,1744944638306,-1113.23583635,0.00068493,120]
[358334276,1744944638315,-1113.23583635,0.00068493,120]
[358334277,1744944638324,-1113.23583635,0.00068493,120]
[358334278,1744944638333,-1327.41273095,0.00068493,120]
[358334279,1744944638343,-1327.41273095,0.00068493,120]
[358334280,1744944638352,-1327.41273095,0.00068493,120]
[358334281,1744944638362,-1327.41273095,0.00068493,120]
[358334282,1744944638372,-1327.41273095,0.00068493,120]
[358334283,1744944638382,-1327.41273095,0.00068493,120]
[358334284,1744944638391,-1327.41273095,0.00068493,120]
[358334285,1744944638400,-1327.41273095,0.00068493,120]
[358334286,1744944638409,-1327.41273095,0.00068493,120]
[358334287,1744944638419,-1327.41273095,0.00068493,120]
[358334288,1744944638429,-1327.41273095,0.00068493,120]
[358334289,1744944638438,-1327.41273095,0.00068493,120]
[358334290,1744944638447,-1327.41273095,0.00068493,120]
[358334291,1744944638456,-1327.41273095,0.00068493,120]
[358334292,1744944638465,-1327.41273095,0.00068493,120]
[358334293,1744944638475,-1327.41273095,0.00068493,120]
[358334294,1744944638484,-1327.41273095,0.00068493,120]
[358334295,1744944638493,-1327.41273095,0.00068493,120]
[358334296,1744944638504,-1327.41273095,0.00068493,120]
[358334297,1744944638513,-1327.41273095,0.00068493,120]
[358334298,1744944638522,-1327.41273095,0.00068493,120]
[358334299,1744944638531,-1327.41273095,0.00068493,120]
[358334300,1744944638541,-1327.41273095,0.00068493,120]
[358334301,1744944638550,-1327.41273095,0.00068493,120]
[358334302,1744944638559,-1327.41273095,0.00068493,120]
[358334303,1744944638567,-1327.41273095,0.00068493,120]
[358334304,1744944638576,-1327.41273095,0.00068493,120]
[358334305,1744944638586,-1327.41273095,0.00068493,120]
[358334306,1744944638595,-1327.41273095,0.00068493,120]
[358334307,1744944638604,-1327.41273095,0.00068493,120]
[358334308,1744944638613,-1327.41273095,0.00068493,120]
[358334309,1744944638622,-1327.41273097,0.00068493,120]
[358334310,1744944638631,-1327.41273097,0.00068493,120]
[358334311,1744944638640,-1327.41273097,0.00068493,120]
[358334312,1744944638649,-1327.41273097,0.00068493,120]
[358334313,1744944638658,-1327.41273097,0.00068493,120]
[358334314,1744944638667,-800.0,0.00069133,120]
[358334315,1744944638676,-500.0,0.00069399,120]
[358334316,1744944638685,-6244.26426817,0.00069487,15]
[358334317,1744944638693,-800.0,0.00070399,120]
[358334318,1744944638703,-503.27335369,0.00071856,15]
[358334319,1744944638711,-203.97,0.00072055,120]
[358334320,1744944638720,-500.0,0.00072275,14]
[358334321,1744944638729,-501.87414195,0.00072275,5]
[358334322,1744944638738,-500.0,0.00072275,14]
[358334323,1744944638747,-1000.0,0.00072425,120]
[358334324,1744944638755,-566.77,0.00072473,2]
[358334325,1744944638764,-166.37,0.0007295,120]
[358334326,1744944638773,-500.0,0.00074434,2]
[358334327,1744944638782,-162.38,0.00074443,120]
[358334328,1744944638791,-1000.0,0.00074448,120]
[358334329,1744944638799,-566.77,0.00074737,2]
[358334330,1744944638808,-163.8,0.00075299,2]
[358334331,1744944638817,-500.0,0.00075646,30]
[358334332,1744944638826,-182.08,0.00076434,120]
[358334333,1744944638834,-203.97,0.00076945,120]
[358334334,1744944638843,-566.77,0.00077001,2]
[358334335,1744944638852,-1002.83815348,0.00077754,14]
[358334336,1744944638860,-501.39724127,0.00077754,14]
[358334337,1744944638869,-244.462,0.00078854,120]
[358334338,1744944638878,-566.77,0.00079265,2]
[358334339,1744944638887,-515.12284104,0.0008,120]
[358334340,1744944638895,-163.8,0.00080319,2]
[358334341,1744944639052,-409.87,0.00080909,30]
[358334342,1744944639062,-1000.0,0.00081478,120]
[358334343,1744944639072,-566.77,0.00081529,2]
[358334344,1744944639084,-203.97,0.00081836,120]
[358334345,1744944639093,-500.0,0.00082192,120]
[358334346,1744944639103,-500.0,0.00082192,120]
[358334347,1744944639113,-624.63116205,0.00082192,120]
[358334348,1744944639122,-500.0,0.00082316,120]
[358334349,1744944639132,-314.083622,0.00083198,120]
[358334350,1744944639141,-566.77,0.00083792,2]
[358334351,1744944639150,-455.66715436,0.00083865,120]
[358334352,1744944639162,-163.8,0.00085339,120]
[358334353,1744944639172,-182.08,0.00085988,120]
[358334354,1744944639181,-566.77,0.00086056,2]
[358334355,1744944639190,-157.041811,0.00086198,120]
[358334356,1744944639199,-203.97,0.00086726,120]
[358334357,1744944639210,-500.0,0.00086881,120]
[358334358,1744944639219,-6244.26426817,0.00087001,15]
[358334359,1744944639229,-1005.9369,0.00088202,30]
[358334360,1744944639240,-566.77,0.0008832,2]
[358334361,1744944639249,-800.0,0.00088712,120]
[358334362,1744944639259,-244.462,0.00089236,120]
[358334363,1744944639269,-500.0,0.00090181,120]
[358334364,1744944639279,-170.31,0.00090186,10]
[358334365,1744944639289,-163.8,0.00090359,120]
[358334366,1744944639298,-1000.0,0.00090531,120]
[358334367,1744944639308,-566.77,0.00090584,2]
[358334368,1744944639318,-500.0,0.00091383,120]
[358334369,1744944639328,-203.97,0.00091616,120]
[358334370,1744944639337,-566.77,0.00092848,2]
[358334371,1744944639347,-155.26510467,0.00093198,120]
[358334372,1744944639357,-566.77,0.00095112,2]
[358334373,1744944639366,-500.0,0.00095767,120]
[358334374,1744944639376,-203.97,0.00096507,120]
[358334375,1744944639386,-507.0,0.00097123,2]
[358334376,1744944639395,-566.77,0.00097376,2]
[358334377,1744944639405,-262.92587231,0.000975,120]
[358334378,1744944639414,-886.40347382,0.00097558,80]
[358334379,1744944639424,-23900.0,0.00098624,30]
[358334380,1744944639434,-1799.99999905,0.000989,120]
[358334381,1744944639444,-1000.0,0.00099584,120]
[358334382,1744944639453,-244.462,0.00099618,120]
[358334383,1744944639463,-566.77,0.0009964,2]
[358334384,1744944639472,-500.0,0.00099642,120]
[358334385,1744944639482,-200.0,0.001,120]
[358334386,1744944639493,-152.0,0.001,120]
[358334387,1744944639502,-523.87066853,0.001,120]
[358334388,1744944639511,-500.0,0.00100247,120]
[358334389,1744944639520,-500.0,0.00100521,120]
[358334390,1744944639529,-500.0,0.00100795,120]
[358334391,1744944639538,-500.0,0.00101068,120]
[358334392,1744944639547,-500.0,0.00101342,120]
[358334393,1744944639556,-203.97,0.00101397,120]
[358334394,1744944639565,-500.0,0.00101616,120]
[358334395,1744944639574,-500.0,0.0010189,120]
[358334396,1744944639583,-400.0,0.001019,37]
[358334397,1744944639592,-566.77,0.00101904,2]
[358334398,1744944639602,-294.75348104,0.00102097,101]
[358334399,1744944639611,-500.0,0.00102164,120]
[358334400,1744944639620,-500.0,0.00102438,120]
[358334401,1744944639629,-500.0,0.00102712,120]
[358334402,1744944639638,-572.23,0.00102986,120]
[358334403,1744944639648,-500.0,0.00103135,120]
[358334404,1744944639657,-566.77,0.00104167,2]
[358334405,1744944639666,-6244.26426817,0.00104515,15]
[358334406,1744944639676,-800.0,0.00105329,120]
[358334407,1744944639685,-500.0,0.00105564,120]
[358334408,1744944639694,-203.97,0.00106288,120]
[358334409,1744944639703,-566.77,0.00106431,2]
[358334410,1744944639712,-500.0,0.00108026,120]
[358334411,1744944639722,-1000.0,0.00108637,120]
[358334412,1744944639731,-566.77,0.00108695,2]
[358334413,1744944639741,-288.17,0.001098,2]
[358334414,1744944639750,-250.0,0.00109961,120]
[358334415,1744944639760,-244.462,0.0011,120]
[358334416,1744944639769,-566.77,0.00110959,2]
[358334417,1744944639779,-203.97,0.00111178,120]
[358334418,1744944639788,-500.0,0.00111837,120]
[358334419,1744944639798,-924.67,0.00111897,120]
[358334420,1744944639808,-566.77,0.00113223,2]
[358334421,1744944639817,-409.87,0.00113272,30]
[358334422,1744944639826,-4584.18,0.00113608,120]
[358334423,1744944639835,-167.67,0.00113673,2]
[358334424,1744944639845,-8768.0,0.00114,120]
[358334425,1744944639854,-566.77,0.00115487,2]
[358334426,1744944639863,-203.97,0.00116068,120]
[358334427,1744944639872,-162.9,0.00118129,30]
[358334428,1744944639881,-150.0,0.00119546,120]
[358334429,1744944639890,-971.42,0.00119546,120]
[358334430,1744944639899,-1100.0,0.0011997,120]
[358334431,1744944639909,-151.0,0.0012,120]
[358334432,1744944639918,-150.0,0.00120916,120]
[358334433,1744944639927,-203.97,0.00120959,120]
[358334434,1744944639937,-6244.26426817,0.00122029,15]
[358334435,1744944639946,-150.0,0.00122286,120]
[358334436,1744944639955,-600.0,0.00122286,120]
[358334437,1744944639964,-167.67,0.00123054,2]
[358334438,1744944639973,-150.0,0.00123656,120]
[358334439,1744944639982,-157.041811,0.00124498,120]
[358334440,1744944639991,-700.0,0.0012467,120]
[358334441,1744944640000,-150.0,0.00125026,120]
[358334442,1744944640010,-191.01,0.00125931,120]
[358334443,1744944640019,-150.0,0.00126396,120]
[358334444,1744944640028,-150.0,0.00127766,120]
[358334445,1744944640037,-971.42,0.00127766,120]
[358334446,1744944640046,-154.5935775,0.00128789,15]
[358334447,1744944640055,-166.37,0.00129114,120]
[358334448,1744944640064,-150.0,0.00129135,120]
[358334449,1744944640073,-198.53,0.0013,120]
[358334450,1744944640082,-200.0,0.0013,120]
[358334451,1744944640091,-268.50693863,0.0013,2]
[358334452,1744944640100,-150.0,0.00130505,120]
[358334453,1744944640109,-150.0,0.00131875,120]
[358334454,1744944640118,-167.67,0.00132434,2]
[358334455,1744944640127,-150.0,0.00133245,120]
[358334456,1744944640137,-151.041811,0.00134498,120]
[358334457,1744944640146,-600.0,0.001346,120]
[358334458,1744944640158,-200.7252664,0.00134615,120]
[358334459,1744944640167,-300.0,0.00135,7]
[358334460,1744944640177,-1068.2,0.00135,30]
[358334461,1744944640187,-700.0,0.0013597,120]
[358334462,1744944640196,-971.42,0.00135985,120]
[358334463,1744944640205,-500.0,0.00136,120]
[358334464,1744944640215,-512.49727494,0.00136351,15]
[358334465,1744944640224,-500.0,0.00136503,120]
[358334466,1744944640233,-194.52359327,0.0013659,120]
[358334467,1744944640244,-4935.4470951,0.00136591,30]
[358334468,1744944640253,-5503.1061652,0.00136591,30]
[358334469,1744944640269,-151.0,0.00136599,120]
[358334470,1744944640283,-207.4,0.00136599,120]
[358334471,1744944640293,-5000.0,0.001366,120]
[358334472,1744944640302,-9316.0,0.00136685,120]
[358334473,1744944640311,-1376.38222382,0.0013669,22]
[358334474,1744944640321,-3691.3414083,0.001367,90]
[358334475,1744944640340,-3804.6585917,0.001367,90]
[358334476,1744944640349,-219.826417,0.001367,120]
[358334477,1744944640359,-154.930569,0.001367,120]
[358334478,1744944640368,-152.031069,0.001367,120]
[358334479,1744944640377,-28278.7123585,0.001367,120]
[358334480,1744944640390,-47202.22477547,0.001367,120]
[358334481,1744944640401,-562.51350259,0.001367,120]
[358334482,1744944640421,-1380.94,0.001367,120]
[358334483,1744944640447,-3153.94450525,0.001367,120]
[358334490,1744944642603,-228.53915392,0.00051973,28]
[358334491,1744944642612,-995.21181452,0.001367,120]
[358334492,1744944642656,-323.38,0.001367,120]
[358334500,1744944643582,-10415.13941833,0.001367,120]
[358334501,1744944643593,-3164.36616967,0.001367,120]
[358334502,1744944643604,-2713.22034969,0.001367,120]
[358334503,1744944643623,-979.36998917,0.001367,120]
[358334504,1744944643634,-361.07060062,0.001367,120]
[358334506,1744944645426,-1026.87245864,0.001367,120]
[358334507,1744944645437,-1415.44956061,0.001367,120]
[358334508,1744944645582,-918.0,0.001367,120]
[358334509,1744944645636,-382.74728,0.001367,120]
[358334510,1744944645795,-1006.75001,0.001367,120]
[358334515,1744944917035,250.0,0.00017,2]
[358334516,1744944918122,300.0,0.00019,2]
[358334517,1744945193661,339.0,0.00028,120]
[358334518,1744945548144,-443.14422775,0.000209,2]
[358334519,1744945628103,-269.37886271,0.000209,2]
[358334520,1744945630087,-692.77428762,0.000209,2]
[358334521,1744945630109,-300.0,0.00020999,2]
[358334522,1744945630132,-48.91843149,0.00021,2]
[358334523,1744945648150,-301.08156851,0.00021,2]
[358334524,1744945648172,-500.0,0.00021,2]
[358334525,1744945648195,-99.47347033,0.00021,2]
[358334526,1744945653131,-400.52652967,0.00021,2]
[358334527,1744945653155,-500.0,0.00021,2]
[358334528,1744945653177,-268.35884676,0.00021,2]
[358334529,1744945653264,-231.64115324,0.00021,2]
[358334530,1744945653286,-420.0,0.00022951,2]
[358334531,1744945653309,-400.0,0.00023,2]
[358334532,1744945653331,-166.0,0.00045,120]
[358334533,1744945653353,-151.0,0.00052,120]
[358334534,1744945653375,-151.0,0.00052,120]
[358334535,1744945653397,-673.32317315,0.00052061,30]
[358334536,1744945653420,-238.6192,0.000551,2]
[358334537,1744945653441,-370.0,0.00055199,9]
[358334538,1744945653469,-152.35,0.000552,54]
[358334539,1744945653496,-152.35,0.000552,54]
[358334540,1744945653522,-152.35,0.000552,54]
[358334541,1744945653547,-152.35,0.000552,54]
[358334542,1744945653573,-152.35,0.000552,54]
[358334543,1744945653597,-152.35,0.000552,54]
[358334544,1744945653622,-152.35,0.000552,54]
[358334545,1744945653649,-152.35,0.000552,54]
[358334546,1744945653674,-152.35,0.000552,54]
[358334547,1744945653700,-152.35,0.000552,54]
[358334548,1744945653725,-152.35,0.000552,54]
[358334549,1744945653753,-152.35,0.000552,54]
[358334550,1744945653775,-168.08,0.00055947,120]
[358334551,1744945653797,-250.0,0.00057256,2]
[358334552,1744945653820,-4549.638922,0.00062157,30]
[358334553,1744945653843,-151.0,0.00064658,120]
[358334554,1744945653865,-151.0,0.00064658,120]
[358334555,1744945653886,-246.30856224,0.00064923,120]
[358334556,1744945653909,-500.0,0.00065906,120]
[358334557,1744945653930,-150.99,0.00067423,2]
[358334558,1744945653951,-500.0,0.00074659,120]
[358334559,1744945653973,-151.0,0.00077315,120]
[358334560,1744945653996,-151.0,0.00077315,120]
[358334561,1744945654017,-32.18955411,0.00087673,15]
[358334562,1744945752135,-1005.0,0.0004,7]
[358334563,1744945768255,132.70790792,0.000399,120]
[358334564,1744945819444,500.0,0.000118,120]
[358334567,1744945831657,-925.0295,0.00043888,30]
[358334568,1744945831667,-185.93522903,0.00051961,2]
[358334569,1744945831676,-156.20860496,0.00052008,2]
[358334570,1744945831686,-150.0,0.00052061,30]
[358334571,1744945831696,-150.0,0.00052061,30]
[358334572,1744945831705,-150.0,0.00052061,30]
[358334573,1744945831715,-150.0,0.00052061,30]
[358334574,1744945831725,-150.0,0.00052061,30]
[358334575,1744945831733,-150.0,0.00052061,30]
[358334576,1744945831743,-150.0,0.00052061,30]
[358334577,1744945831753,-150.0,0.00052061,30]
[358334578,1744945831762,-150.0,0.00052061,30]
[358334579,1744945831771,-150.0,0.00052061,30]
[358334580,1744945831782,-150.0,0.00052061,30]
[358334581,1744945831791,-8.06330796,0.00052061,30]
[358334582,1744945831803,-141.93669204,0.00052061,30]
[358334583,1744945831813,-194.259999,0.00052061,30]
[358334584,1744945831824,-237.87279308,0.00052061,60]
[358334585,1744945831834,-350.0,0.00057157,111]
[358334586,1744945831843,-350.0,0.00057267,111]
[358334587,1744945831853,-163.1997107,0.00074942,111]
[358334588,1744945831865,-186.8002893,0.00074942,111]
[358334589,1744945831875,-662.94393352,0.00085,120]
[358334590,1744945831886,-37.05606648,0.00085,120]
[358334591,1744945831895,-644.94354743,0.00087673,15]
[358334592,1744945831904,-150.99,0.00089973,30]
[358334593,1744945831913,-178.0,0.00089973,120]
[358334594,1744945831923,-100.98522368,0.0009,120]
[358334595,1744945831938,-499.01477632,0.0009,120]
[358334596,1744945831946,-170.53,0.00092943,10]
[358334597,1744945831955,-500.0,0.00095752,120]
[358334598,1744945831964,-700.0,0.00096443,120]
[358334599,1744945831974,-518.13324438,0.000975,120]
[358334600,1744945831983,-550.0,0.000985,120]
[358334601,1744945831992,-800.0,0.00099082,120]
[358334602,1744945832002,-1000.0,0.001,120]
[358334603,1744945832011,-151.0,0.001,120]
[358334604,1744945832020,-151.0,0.001,120]
[358334606,1744945832211,-1886.27552853,0.001,120]
[358334607,1744945832221,-500.0,0.00100937,120]
[358334608,1744945832231,-155.0,0.00102,120]
[358334609,1744945832240,-156.67,0.0010739,2]
[358334610,1744945832250,-496.68,0.00108337,15]
[358334611,1744945832259,-4707.59,0.00108437,2]
[358334612,1744945832268,-152.696,0.0011,120]
[358334613,1744945832275,-689.648,0.0011,120]
[358334614,1744945832284,-364.79,0.00110439,30]
[358334615,1744945832293,-689.648,0.00110941,120]
[358334616,1744945832304,-156.67,0.001113,2]
[358334617,1744945832313,-152.697,0.00111883,120]
[358334618,1744945832323,-346.66038668,0.00111883,120]
[358334619,1744945832334,-342.98861332,0.00111883,120]
[358334620,1744945832343,-50.56318156,0.00112564,2]
[358334621,1744945832355,-1885.935,0.00112564,2]
[358334622,1744945832364,-630.24830038,0.00112564,2]
[358334623,1744945832379,-465.35351806,0.00112564,2]
[358334624,1744945832388,-200.0,0.00112759,30]
[358334625,1744945832397,-176.89,0.00112784,30]
[358334626,1744945832407,-689.648,0.00112824,120]
[358334627,1744945832416,-289.46,0.00113008,120]
[358334628,1744945832425,-250.0,0.00113101,120]
[358334629,1744945832435,-353.41244518,0.00113437,2]
[358334630,1744945832446,-11642.35769434,0.00113437,2]
[358334631,1744945832456,-2475.883476,0.00113437,2]
[358334632,1744945832468,-2060.63728448,0.00113437,2]
[358334633,1744945832477,-536.28,0.00113523,30]
[358334634,1744945832486,-500.0,0.00113534,120]
[358334635,1744945832496,-174.79111751,0.00113534,120]
[358334636,1744945832505,-500.0,0.00113534,120]
[358334637,1744945832513,-500.0,0.00113534,120]
[358334638,1744945832527,-500.0,0.00113534,120]
[358334639,1744945832540,-500.0,0.00113534,120]
[358334640,1744945832550,-500.0,0.00113534,120]
[358334641,1744945832561,-500.0,0.00113534,120]
[358334642,1744945832570,-500.0,0.00113534,120]
[358334643,1744945832579,-500.0,0.00113534,120]
[358334644,1744945832590,-500.0,0.00113534,120]
[358334645,1744945832599,-500.0,0.00113534,120]
[358334646,1744945832608,-295.89610587,0.00113534,120]
[358334647,1744945832617,-500.0,0.00113534,120]
[358334648,1744945832627,-500.0,0.00113534,120]
[358334649,1744945832636,-500.0,0.00113534,120]